bitfinex/quotes_BTCUSD_20220101
["timestamp","ask_amount","ask_price","bid_price","bid_amount"]
[1641014990760,0.90433561,47400.0,47399.0,0.01864317]
[1641014990957,0.90433561,47400.0,47399.0,0.14364317]
[1641014991857,0.90433561,47400.0,47399.0,0.125]
[1641014992258,0.90433561,47400.0,47395.0,7.303e-05]
[1641014992259,0.052764,47398.0,47395.0,7.303e-05]
[1641014992458,0.052764,47398.0,47397.0,0.125]
[1641014992659,0.052764,47398.0,47395.0,7.303e-05]
[1641014992660,0.390193,47398.0,47395.0,7.303e-05]
[1641014993160,0.30514701,47397.0,47395.0,7.303e-05]
[1641014993460,0.30514701,47397.0,47396.0,0.125]
[1641014994059,0.30524043,47397.0,47396.0,0.125]
[1641014994719,0.30524043,47397.0,47395.0,7.303e-05]
[1641014994918,0.41077543,47397.0,47395.0,7.303e-05]
[1641014995419,9.342e-05,47397.0,47395.0,7.303e-05]
[1641014995618,9.342e-05,47397.0,47396.0,0.125]
[1641014996018,0.05285742,47397.0,47396.0,0.49273806]
[1641014996219,9.342e-05,47397.0,47396.0,0.49273806]
[1641014996421,0.56690661,47400.0,47397.0,1.12]
[1641014996619,0.56690661,47400.0,47399.0,1.245]
[1641014996820,0.56690661,47400.0,47399.0,1.34119721]
[1641014997420,6.61e-06,47400.0,47399.0,1.34119721]
[1641014997621,6.61e-06,47400.0,47399.0,0.24258632]
[1641014997824,6.61e-06,47400.0,47399.0,0.24134311]
[1641014998070,6.61e-06,47400.0,47399.0,0.14638911]
[1641014998868,6.61e-06,47400.0,47399.0,0.125]
[1641014999771,6.61e-06,47400.0,47394.0,0.57343396]
[1641014999971,6.61e-06,47400.0,47399.0,0.125]
[1641015000371,0.05276561,47400.0,47399.0,0.125]
[1641015001573,6.61e-06,47400.0,47399.0,0.125]
[1641015001813,6.61e-06,47400.0,47399.0,0.462429]
[1641015002014,7.9e-05,47402.0,47400.0,0.28234611]
[1641015002218,7.9e-05,47402.0,47401.0,0.219942]
[1641015002611,7.9e-05,47402.0,47401.0,0.67360511]
[1641015002812,8.9e-05,47403.0,47402.0,1.12]
[1641015003012,8.9e-05,47403.0,47402.0,1.88830968]
[1641015003211,8.9e-05,47403.0,47402.0,0.462406]
[1641015003613,8.9e-05,47403.0,47402.0,0.48119323]
[1641015003814,8.9e-05,47403.0,47402.0,0.53393523]
[1641015003815,0.008699,47403.0,47402.0,0.53393523]
[1641015004014,0.0002,47421.0,47411.0,1.01]
[1641015004214,0.0002,47421.0,47416.0,0.125]
[1641015004414,0.0002,47421.0,47417.0,0.094907]
[1641015005012,0.0002,47421.0,47417.0,0.85228523]
[1641015005013,0.00891,47419.0,47417.0,0.85228523]
[1641015005214,0.0002,47421.0,47418.0,0.96]
[1641015005484,0.0003,47425.0,47422.0,0.00123784]
[1641015005485,0.0002,47425.0,47422.0,0.00123784]
[1641015005675,0.0005,47432.0,47430.0,0.00125489]
[1641015005875,0.0005,47432.0,47431.0,1.457174]
[1641015006073,0.0003,47432.0,47431.0,1.78095705]
[1641015006276,0.0004,47445.0,47444.0,1.35503947]
[1641015006476,0.0004,47445.0,47444.0,1.88405747]
[1641015006674,0.0002,47458.0,47447.0,0.336956]
[1641015006875,0.0002,47458.0,47448.0,1.33982]
[1641015007174,0.0002,47458.0,47453.0,0.00124288]
[1641015007175,0.0001,47454.0,47453.0,0.00124288]
[1641015007379,0.0001,47454.0,47453.0,0.51997114]
[1641015007676,0.0001,47454.0,47453.0,0.69458817]
[1641015008080,0.0001,47473.0,47465.0,0.45473853]
[1641015008276,0.0001,47470.0,47465.0,0.07066]
[1641015008575,0.0001,47470.0,47465.0,0.07056]
[1641015008775,0.0001,47470.0,47469.0,0.1249]
[1641015009231,0.0001,47470.0,47469.0,0.1248]
[1641015009232,0.00139631,47470.0,47469.0,0.1248]
[1641015009426,0.00139631,47470.0,47469.0,0.00927291]
[1641015009628,0.00139631,47470.0,47469.0,0.00917291]
[1641015009930,0.00139631,47470.0,47469.0,0.00907291]
[1641015010326,0.00139631,47470.0,47469.0,0.00897291]
[1641015010729,0.00139631,47470.0,47469.0,0.00887291]
[1641015010927,0.01000531,47470.0,47469.0,0.00387291]
[1641015011132,0.01000531,47470.0,47469.0,0.00377291]
[1641015011528,0.01000531,47470.0,47469.0,0.00373291]
[1641015011727,0.00500531,47470.0,47469.0,0.00373291]
[1641015011928,0.00500531,47470.0,47469.0,0.00363291]
[1641015012327,0.00500531,47470.0,47469.0,0.00353291]
[1641015012530,0.21500531,47470.0,47469.0,0.00353291]
[1641015012729,0.55263031,47470.0,47469.0,0.00343291]
[1641015012969,0.55263031,47470.0,47469.0,0.00333291]
[1641015013175,0.83531031,47470.0,47469.0,0.00333291]
[1641015013372,0.70263031,47470.0,47469.0,0.00323291]
[1641015013571,0.55263031,47470.0,47469.0,0.00323291]
[1641015013771,0.55263031,47470.0,47469.0,0.00313291]
[1641015013978,0.337625,47469.0,47464.0,0.01448949]
[1641015014172,0.337625,47469.0,47468.0,0.1148]
[1641015014173,0.390317,47469.0,47468.0,0.1148]
[1641015014472,0.337625,47469.0,47468.0,0.1147]
[1641015015472,0.337625,47469.0,47468.0,0.1146]
[1641015015973,0.337625,47469.0,47468.0,0.1145]
[1641015016273,0.337625,47469.0,47468.0,0.1144]
[1641015016717,0.61856512,47469.0,47468.0,0.1143]
[1641015016911,0.61856512,47469.0,47468.0,0.1142]
[1641015017111,0.337625,47469.0,47468.0,0.1142]
[1641015017310,0.61013107,47469.0,47468.0,0.1141]
[1641015018213,0.337625,47469.0,47468.0,0.1141]
[1641015018413,0.337625,47469.0,47468.0,0.114]
[1641015018414,0.60735236,47469.0,47468.0,0.114]
[1641015018613,0.337625,47469.0,47468.0,0.114]
[1641015018817,0.327625,47469.0,47468.0,0.114]
[1641015019015,0.21500531,47470.0,47468.0,0.114]
[1641015019216,0.21500531,47470.0,47469.0,0.114]
[1641015019415,0.21500531,47470.0,47469.0,0.1139]
[1641015019816,0.21500531,47470.0,47469.0,0.79723273]
[1641015020018,0.21500531,47470.0,47469.0,1.13481673]
[1641015020491,0.0001,47475.0,47472.0,0.26]
[1641015020687,0.0001,47475.0,47473.0,0.337554]
[1641015021087,0.00027303,47474.0,47473.0,0.337554]
[1641015021690,0.00888303,47474.0,47473.0,0.451454]
[1641015022088,0.00888303,47474.0,47473.0,0.74178907]
[1641015022289,0.21888303,47474.0,47473.0,0.75988268]
[1641015022790,0.21888303,47474.0,47473.0,0.46954761]
[1641015023189,0.0002,47476.0,47474.0,1.09]
[1641015023190,9.303e-05,47476.0,47474.0,1.09]
[1641015023392,0.0001,47487.0,47475.0,0.26177049]
[1641015023593,0.0001,47487.0,47481.0,0.01558761]
[1641015023792,0.0001,47487.0,47482.0,0.74572]
[1641015023991,0.0001,47487.0,47482.0,0.57892254]
[1641015024222,0.0001,47487.0,47483.0,0.22618391]
[1641015024415,0.0001,47487.0,47483.0,1.68436797]
[1641015024614,0.00018258,47484.0,47483.0,1.68560724]
[1641015024814,2.903e-05,47485.0,47484.0,1.12]
[1641015025016,0.0001,47487.0,47484.0,1.33628706]
[1641015025216,0.101,47499.0,47488.0,0.4725354]
[1641015025518,0.0001,47500.0,47499.0,0.00120247]
[1641015025713,0.0001,47500.0,47499.0,0.10489947]
[1641015025914,0.0001,47500.0,47499.0,0.03614679]
[1641015026115,0.0001,47500.0,47499.0,0.21243685]
[1641015026315,0.0001,47500.0,47499.0,0.57543089]
[1641015026522,0.00090963,47502.0,47499.0,0.86004564]
[1641015026719,0.0194055,47517.0,47499.0,0.86004564]
[1641015026720,0.001,47539.0,47529.0,0.36176905]
[1641015026922,0.001,47539.0,47529.0,0.62367227]
[1641015027118,0.40276165,47560.0,47531.0,0.44]
[1641015027317,0.30401518,47558.0,47554.0,0.43189776]
[1641015027523,0.59315655,47580.0,47560.0,0.35931595]
[1641015027727,0.10890958,47600.0,47560.0,0.35901595]
[1641015027987,6e-05,47613.0,47565.0,0.09989999]
[1641015027988,0.00123032,47584.0,47565.0,0.09989999]
[1641015028191,0.00318944,47597.0,47565.0,0.01055]
[1641015028386,0.10516467,47589.0,47565.0,0.06379127]
[1641015028586,0.29904498,47573.0,47565.0,0.01055]
[1641015028787,0.10516467,47589.0,47565.0,0.01035]
[1641015028788,0.28340146,47572.0,47565.0,0.01035]
[1641015029084,0.03651832,47588.0,47565.0,0.01015]
[1641015029085,0.00182477,47577.0,47565.0,0.01015]
[1641015029283,0.28340146,47587.0,47563.0,0.00111738]
[1641015029284,0.00158843,47571.0,47563.0,0.00111738]
[1641015029483,0.00182477,47573.0,47563.0,0.00101738]
[1641015029684,0.00157018,47570.0,47563.0,0.00101738]
[1641015029883,0.00157018,47570.0,47557.0,0.00114879]
[1641015029884,0.12572941,47560.0,47557.0,0.00114879]
[1641015030095,0.337467,47556.0,47551.0,0.0008]
[1641015030286,0.23328654,47560.0,47551.0,0.0006]
[1641015030287,1.34929177,47552.0,47551.0,0.0006]
[1641015030488,0.327467,47552.0,47551.0,0.0006]
[1641015030789,0.327467,47552.0,47539.0,0.0012632]
[1641015030790,0.24366895,47545.0,47539.0,0.00114582]
[1641015030985,0.24366895,47545.0,47539.0,0.00094582]
[1641015031185,0.00109547,47544.0,47539.0,0.00084582]
[1641015031386,0.00109547,47544.0,47539.0,0.00064582]
[1641015031591,0.24366895,47545.0,47543.0,0.01]
[1641015031592,0.1,47545.0,47543.0,0.01]
[1641015031811,0.33763032,47544.0,47543.0,0.0097]
[1641015032111,0.38872579,47544.0,47543.0,0.0095]
[1641015032311,0.38872579,47544.0,47543.0,0.0094]
[1641015032507,0.33872579,47544.0,47543.0,0.0092]
[1641015032709,0.33872579,47544.0,47543.0,0.0091]
[1641015032912,0.04129779,47544.0,47543.0,0.21967528]
[1641015033111,0.04129779,47544.0,47543.0,0.346328]
[1641015033314,0.04129779,47544.0,47543.0,0.0086]
[1641015033511,0.04129779,47544.0,47543.0,0.43417281]
[1641015033710,0.04129779,47544.0,47543.0,0.43397281]
[1641015033911,0.04129779,47544.0,47543.0,0.12090006]
[1641015034114,0.00129779,47544.0,47543.0,0.12080006]
[1641015034312,0.00129779,47544.0,47543.0,0.17]
[1641015034713,0.00129779,47544.0,47543.0,0.1704]
[1641015034915,0.00129779,47544.0,47543.0,0.26857522]
[1641015035112,0.00129779,47544.0,47543.0,0.37735301]
[1641015035313,0.0012985,47558.0,47544.0,0.805847]
[1641015035583,0.0001,47571.0,47560.0,0.23448504]
[1641015035884,0.0001,47571.0,47562.0,0.00124387]
[1641015036282,0.00182477,47568.0,47562.0,0.00124387]
[1641015036681,0.0001,47571.0,47560.0,0.23448504]
[1641015036682,0.337428,47564.0,47560.0,0.23448504]
[1641015036883,0.33014621,47566.0,47560.0,0.23448504]
[1641015036884,0.31859664,47562.0,47560.0,0.23448504]
[1641015037083,0.337428,47561.0,47560.0,0.23448504]
[1641015037284,0.33773839,47561.0,47560.0,0.23438504]
[1641015037684,0.00031039,47561.0,47560.0,0.23428504]
[1641015038084,0.00031039,47561.0,47560.0,0.23418504]
[1641015038085,1.37290939,47561.0,47560.0,0.23418504]
[1641015038288,1.12,47560.0,47543.0,0.0004]
[1641015038488,1.457428,47560.0,47545.0,0.00129333]
[1641015038786,0.23982531,47559.0,47550.0,0.10887779]
[1641015038983,0.337428,47558.0,47555.0,0.10887779]
[1641015039219,0.337428,47557.0,47553.0,0.09817522]
[1641015039414,0.00023735,47557.0,47556.0,0.09817522]
[1641015039614,0.00861,47561.0,47556.0,0.09807522]
[1641015039815,0.00861,47561.0,47560.0,0.09807522]
[1641015040014,0.00861,47561.0,47554.0,0.28359439]
[1641015040015,0.00029213,47560.0,47554.0,0.28359439]
[1641015040215,0.00029213,47560.0,47559.0,0.09797522]
[1641015040414,0.00861,47561.0,47559.0,0.09797522]
[1641015041617,0.00861,47561.0,47546.0,0.09999999]
[1641015041618,0.09797,47559.0,47546.0,0.09999999]
[1641015041818,1.40935411,47547.0,47546.0,0.09999999]
[1641015042017,0.67678211,47547.0,47546.0,0.09999999]
[1641015042821,0.67678211,47547.0,47524.0,0.09999999]
[1641015042822,0.337428,47543.0,47524.0,0.09999999]
[1641015043078,0.00126659,47535.0,47529.0,0.38057553]
[1641015043278,0.00126659,47535.0,47534.0,0.10887779]
[1641015043579,0.00126659,47535.0,47534.0,0.00018258]
[1641015043779,0.15733696,47537.0,47534.0,0.10906037]
[1641015043977,0.15733696,47537.0,47536.0,0.0005]
[1641015044175,0.00123539,47540.0,47536.0,0.10937779]
[1641015044377,0.00123539,47540.0,47539.0,0.10887779]
[1641015044778,0.00123539,47540.0,47536.0,0.0005]
[1641015044779,0.337428,47537.0,47536.0,7.8e-06]
[1641015044977,0.912042,47537.0,47536.0,7.8e-06]
[1641015045177,0.687428,47537.0,47536.0,7.8e-06]
[1641015045376,0.587428,47537.0,47536.0,7.8e-06]
[1641015045579,0.94458669,47537.0,47536.0,7.8e-06]
[1641015045777,1.26822782,47537.0,47536.0,7.8e-06]
[1641015045978,0.2,47532.0,47529.0,0.0213756]
[1641015046181,0.2,47532.0,47519.0,0.14464484]
[1641015046182,0.2,47528.0,47519.0,0.14464484]
[1641015046378,0.337428,47524.0,47519.0,0.14464484]
[1641015046581,1.457428,47522.0,47519.0,0.14464484]
[1641015046820,1.457428,47520.0,47519.0,4.84e-06]
[1641015047022,0.387428,47520.0,47519.0,4.84e-06]
[1641015047220,0.440077,47520.0,47519.0,0.00050484]
[1641015047421,0.337428,47519.0,47512.0,0.08550483]
[1641015047627,0.17203,47529.0,47517.0,0.10582244]
[1641015047628,0.274614,47528.0,47517.0,0.10582244]
[1641015047921,0.17203,47529.0,47526.0,0.08550483]
[1641015047922,0.33717496,47527.0,47526.0,0.08550483]
[1641015048121,0.33717496,47527.0,47517.0,0.08550483]
[1641015048320,0.28001208,47527.0,47526.0,0.00020084]
[1641015048521,0.28001208,47527.0,47517.0,0.08550483]
[1641015048522,0.61749308,47527.0,47518.0,0.0003469]
[1641015048723,0.337481,47526.0,47518.0,0.0003469]
[1641015049124,0.387481,47522.0,47518.0,0.0003469]
[1641015049321,0.337481,47519.0,47518.0,0.0003469]
[1641015049520,0.387481,47519.0,47518.0,0.0003469]
[1641015049721,0.387481,47519.0,47518.0,0.15033911]
[1641015049923,1.20377882,47519.0,47518.0,0.15033911]
[1641015050125,1.31238882,47519.0,47518.0,0.0003469]
[1641015050475,1.31238882,47519.0,47512.0,0.01084597]
[1641015050476,0.2,47514.0,47512.0,0.01084597]
[1641015050676,0.537481,47513.0,47512.0,0.01084597]
[1641015050876,0.337481,47513.0,47512.0,0.01084597]
[1641015051076,0.637481,47513.0,47512.0,0.16094773]
[1641015051279,0.637481,47513.0,47512.0,0.15014773]
[1641015051280,0.93076753,47513.0,47512.0,0.15014773]
[1641015051677,0.93076753,47513.0,47512.0,0.00015552]
[1641015051880,1.657481,47512.0,47511.0,5.552e-05]
[1641015052078,1.37391325,47508.0,47507.0,4.414e-05]
[1641015052277,1.71139425,47508.0,47507.0,4.414e-05]
[1641015052478,1.81139425,47508.0,47507.0,5.43e-06]
[1641015052680,1.81139425,47508.0,47501.0,5.43e-06]
[1641015052681,0.44549094,47503.0,47501.0,5.43e-06]
[1641015052880,0.53868209,47502.0,47501.0,5.43e-06]
[1641015053079,0.38868209,47502.0,47501.0,5.43e-06]
[1641015053277,0.49135209,47502.0,47501.0,0.00011498]
[1641015053478,0.49135209,47502.0,47501.0,0.17011498]
[1641015053881,0.76172828,47502.0,47501.0,0.16511498]
[1641015054079,0.96172828,47502.0,47501.0,0.16511498]
[1641015054720,1.25314065,47502.0,47491.0,0.08650483]
[1641015054916,0.052668,47496.0,47491.0,0.08650483]
[1641015055120,0.337481,47498.0,47491.0,0.08650483]
[1641015055121,0.337481,47494.0,47491.0,0.08650483]
[1641015055516,0.00128155,47496.0,47494.0,1.01]
[1641015055720,0.00981831,47508.0,47497.0,0.2637846]
[1641015056018,0.00981831,47508.0,47507.0,0.08673635]
[1641015056218,0.00981831,47508.0,47507.0,0.17809635]
[1641015056421,0.00994612,47508.0,47507.0,0.17809635]
[1641015056617,0.00994612,47508.0,47507.0,0.78032835]
[1641015057617,0.00994612,47508.0,47507.0,0.32808856]
[1641015057967,0.00994612,47508.0,47507.0,0.23672856]
[1641015058169,0.00028397,47508.0,47507.0,0.23672856]
[1641015058369,0.00028397,47508.0,47507.0,0.23549704]
[1641015058972,0.00028397,47508.0,47507.0,0.59955573]
[1641015059470,0.00028397,47508.0,47501.0,0.00129555]
[1641015059671,0.00028397,47508.0,47498.0,0.418]
[1641015059871,0.00010955,47507.0,47498.0,0.418]
[1641015060273,0.29273391,47509.0,47498.0,0.418]
[1641015060472,0.37517983,47502.0,47499.0,0.00014606]
[1641015060676,0.337534,47500.0,47499.0,0.00014606]
[1641015060872,0.00010955,47513.0,47498.0,0.37031524]
[1641015061075,0.00010955,47513.0,47503.0,0.0012289]
[1641015061272,9.129e-05,47512.0,47503.0,0.0012289]
[1641015061481,9.129e-05,47512.0,47508.0,0.00123923]
[1641015061727,7.303e-05,47511.0,47509.0,0.59912564]
[1641015062017,0.00861,47519.0,47510.0,0.15]
[1641015062018,0.00020084,47518.0,47510.0,0.15]
[1641015062216,0.00020084,47518.0,47515.0,0.15]
[1641015062417,0.00861,47519.0,47508.0,0.00123923]
[1641015062418,0.33771658,47517.0,47508.0,0.00123923]
[1641015062620,0.33771658,47517.0,47513.0,0.15]
[1641015062818,0.00016432,47516.0,47508.0,0.00123923]
[1641015063018,0.25590355,47516.0,47501.0,0.35827668]
[1641015063220,0.00014606,47515.0,47509.0,0.34072395]
[1641015063619,0.00012781,47514.0,47509.0,0.34072395]
[1641015063821,0.00012781,47514.0,47505.0,0.09438377]
[1641015064122,0.00012781,47514.0,47510.0,0.15]
[1641015064320,0.00012781,47514.0,47513.0,0.15]
[1641015065574,0.00012781,47514.0,47504.0,0.00123094]
[1641015065575,0.01012781,47514.0,47504.0,0.00123094]
[1641015065772,0.01012781,47514.0,47498.0,0.10199251]
[1641015066273,0.00512781,47514.0,47507.0,0.15]
[1641015066571,0.00512781,47514.0,47512.0,0.15]
[1641015066775,0.337534,47513.0,47508.0,0.00010955]
[1641015066972,0.00512781,47514.0,47508.0,0.00010955]
[1641015067172,0.337534,47513.0,47502.0,0.0002191]
[1641015067373,0.390174,47513.0,47501.0,0.00023736]
[1641015067773,0.390174,47513.0,47501.0,0.24074979]
[1641015068172,0.26465986,47511.0,47506.0,0.14889946]
[1641015068372,0.337034,47510.0,47502.0,0.0002191]
[1641015068573,0.05264,47513.0,47501.0,0.68301272]
[1641015068574,0.05264,47513.0,47507.0,0.12036686]
[1641015068773,0.05264,47513.0,47512.0,0.12023778]
[1641015068974,0.390134,47513.0,47512.0,0.12023778]
[1641015069240,0.62959926,47513.0,47512.0,0.12023778]
[1641015069537,0.390134,47513.0,47512.0,0.12073778]
[1641015069733,0.00512781,47514.0,47512.0,0.39808571]
[1641015069933,0.00512781,47514.0,47513.0,0.487494]
[1641015070538,0.00512781,47514.0,47513.0,0.15]
[1641015072836,0.27923348,47514.0,47513.0,0.14]
[1641015073270,0.6164741,47514.0,47513.0,0.14]
[1641015074874,0.34236843,47514.0,47513.0,0.14]
[1641015076072,0.337494,47514.0,47513.0,0.14]
[1641015077340,0.59003871,47514.0,47513.0,0.14]
[1641015077538,0.98515928,47514.0,47513.0,0.14]
[1641015078742,0.73261457,47514.0,47513.0,0.14]
[1641015078943,0.337494,47514.0,47513.0,0.14]
[1641015080143,0.68906445,47514.0,47513.0,0.14]
[1641015081485,0.337494,47514.0,47513.0,0.14]
[1641015081687,0.052636,47515.0,47513.0,0.14]
[1641015081885,0.052636,47515.0,47514.0,0.14]
[1641015082488,0.39013,47515.0,47514.0,0.14]
[1641015085031,0.3902776,47515.0,47514.0,0.14]
[1641015086428,0.3988876,47515.0,47514.0,0.14]
[1641015087230,0.3938876,47515.0,47514.0,0.14]
[1641015089275,0.72101807,47515.0,47514.0,0.14]
[1641015089872,0.3938876,47515.0,47514.0,0.14]
[1641015090074,0.3888876,47515.0,47514.0,0.14]
[1641015090276,0.3888876,47515.0,47512.0,0.0005]
[1641015090475,0.3888876,47515.0,47514.0,0.14]
[1641015091476,0.72599074,47515.0,47512.0,0.0005]
[1641015091745,0.72099074,47515.0,47514.0,0.14]
[1641015092337,0.72099074,47515.0,47512.0,0.0005]
[1641015092538,0.72099074,47515.0,47514.0,0.14]
[1641015093837,0.7736347,47515.0,47514.0,0.14]
[1641015094038,0.72099074,47515.0,47514.0,0.14]
[1641015094240,0.3838876,47515.0,47514.0,0.14]
[1641015094838,0.38363429,47515.0,47514.0,0.14]
[1641015103083,0.63614578,47515.0,47514.0,0.14]
[1641015103285,0.38363429,47515.0,47514.0,0.14]
[1641015104690,0.2,47514.0,47512.0,0.0005]
[1641015104985,0.2,47512.0,47500.0,1.0]
[1641015105286,0.24121002,47504.0,47501.0,0.00023736]
[1641015105684,0.24121002,47504.0,47503.0,0.15]
[1641015105888,0.66067429,47504.0,47503.0,0.15]
[1641015106086,0.66067429,47504.0,47503.0,0.15020084]
[1641015106487,0.76597929,47504.0,47503.0,0.15020084]
[1641015107538,0.34651502,47504.0,47503.0,0.15020084]
[1641015108440,0.34651502,47504.0,47503.0,0.15070084]
[1641015109040,0.81310828,47504.0,47503.0,0.15070084]
[1641015109239,0.88400902,47504.0,47503.0,0.15070084]
[1641015109438,0.98400902,47504.0,47503.0,0.15070084]
[1641015109642,0.98400902,47504.0,47503.0,0.00070084]
[1641015110244,0.98400902,47504.0,47503.0,0.15070084]
[1641015110996,0.98400902,47504.0,47497.0,0.2637846]
[1641015110997,1.1,47500.0,47497.0,0.2637846]
[1641015111189,0.64282752,47498.0,47497.0,0.2637846]
[1641015111386,0.74282752,47498.0,47497.0,0.2637846]
[1641015111587,0.84282752,47498.0,47497.0,0.2637846]
[1641015111986,1.54435004,47498.0,47497.0,0.2637846]
[1641015112286,1.54435004,47498.0,47497.0,0.4142846]
[1641015112485,1.56277437,47498.0,47497.0,0.4142846]
[1641015112887,1.56277437,47498.0,47495.0,0.00828734]
[1641015112888,0.2637846,47497.0,47495.0,0.00828734]
[1641015113088,1.65876816,47496.0,47495.0,0.01657538]
[1641015113387,0.69144316,47496.0,47495.0,0.01657538]
[1641015113591,0.79144316,47496.0,47495.0,0.01657538]
[1641015113790,1.3212861,47492.0,47491.0,0.001]
[1641015114089,1.3212861,47492.0,47491.0,0.151]
[1641015114090,1.09935015,47492.0,47491.0,0.151]
[1641015114343,1.00471324,47492.0,47491.0,0.1515]
[1641015114545,0.80471324,47492.0,47491.0,0.1515]
[1641015114743,0.80445994,47492.0,47491.0,0.0015]
[1641015114945,0.337494,47488.0,47472.0,0.00120712]
[1641015115146,1.48662611,47471.0,47461.0,0.60477665]
[1641015115447,0.00120105,47464.0,47463.0,0.50314721]
[1641015115645,0.00120105,47464.0,47463.0,0.65314721]
[1641015115846,0.00120105,47464.0,47463.0,0.00073031]
[1641015116044,0.00120105,47464.0,47463.0,0.15073031]
[1641015116248,0.00962692,47470.0,47463.0,0.42312517]
[1641015116448,0.00962692,47470.0,47468.0,0.15]
[1641015116647,0.337494,47469.0,47464.0,0.27260692]
[1641015116847,0.00123165,47474.0,47464.0,0.27260692]
[1641015116848,0.12568064,47492.0,47473.0,0.36928364]
[1641015117049,0.12568064,47492.0,47484.0,0.4057412]
[1641015117050,0.1515,47491.0,47484.0,0.4057412]
[1641015117247,0.1515,47491.0,47489.0,0.15]
[1641015117448,0.1515,47491.0,47490.0,0.15]
[1641015117648,0.256841,47491.0,47490.0,0.15023735]
[1641015117849,0.1515,47491.0,47490.0,0.15023735]
[1641015118090,0.1515,47491.0,47490.0,0.00023735]
[1641015118290,0.1515,47491.0,47490.0,0.15023735]
[1641015118493,0.1515,47491.0,47490.0,0.15]
[1641015118691,0.3515,47491.0,47485.0,0.02188476]
[1641015118899,1.32,47486.0,47485.0,0.02188476]
[1641015119090,0.590174,47486.0,47485.0,0.17188476]
[1641015119292,0.390174,47486.0,47485.0,0.17188476]
[1641015119792,0.390174,47486.0,47485.0,0.15]
[1641015120391,0.390174,47486.0,47485.0,0.8044887]
[1641015120591,0.05268,47486.0,47485.0,0.8044887]
[1641015120791,0.052766,47488.0,47485.0,0.8044887]
[1641015121091,0.052766,47488.0,47480.0,0.25498453]
[1641015121092,0.052766,47488.0,47487.0,0.14884837]
[1641015121493,0.39026,47488.0,47486.0,7.303e-05]
[1641015121767,1.247494,47487.0,47486.0,7.303e-05]
[1641015121961,0.59195453,47487.0,47486.0,0.15007303]
[1641015122162,1.05587937,47487.0,47486.0,0.15007303]
[1641015122362,1.05587937,47487.0,47486.0,7.303e-05]
[1641015122363,1.15587937,47487.0,47486.0,7.303e-05]
[1641015122562,0.95587937,47487.0,47486.0,7.303e-05]
[1641015122762,0.69321267,47487.0,47486.0,7.303e-05]
[1641015122963,0.94823818,47487.0,47486.0,7.303e-05]
[1641015123165,0.69321267,47487.0,47486.0,0.15]
[1641015123765,0.59321267,47487.0,47486.0,0.15]
[1641015124167,0.33875214,47487.0,47486.0,0.15]
[1641015124368,0.337494,47487.0,47486.0,0.15]
[1641015124566,0.052766,47488.0,47486.0,0.15]
[1641015124765,0.052766,47488.0,47487.0,0.15]
[1641015125590,0.0001,47488.0,47487.0,0.15]
[1641015125789,0.0001,47488.0,47487.0,0.567474]
[1641015125986,0.0001,47488.0,47487.0,3.446873]
[1641015126990,0.0001,47488.0,47487.0,3.13949207]
[1641015127187,0.0001,47488.0,47487.0,3.16050014]
[1641015127590,0.0001,47488.0,47487.0,2.84466598]
[1641015127591,0.00022585,47488.0,47487.0,2.84466598]
[1641015127790,0.00022585,47488.0,47487.0,0.25163984]
[1641015127991,0.14202585,47491.0,47490.0,0.6167771]
[1641015128191,0.14202585,47491.0,47490.0,1.38452459]
[1641015128390,0.14202585,47491.0,47490.0,1.39110992]
[1641015128589,0.14202585,47491.0,47490.0,1.67753986]
[1641015128794,0.0001,47500.0,47491.0,1.267494]
[1641015128994,0.0001,47500.0,47494.0,0.15]
[1641015129239,0.0001,47500.0,47494.0,0.7700256]
[1641015129436,0.0001,47500.0,47494.0,0.15]
[1641015130639,0.0001,47500.0,47494.0,0.42425578]
[1641015131235,0.0001,47500.0,47494.0,0.15]
[1641015131636,0.0001,47500.0,47494.0,0.16806666]
[1641015132437,0.0001,47500.0,47494.0,0.15]
[1641015133287,0.052755,47499.0,47494.0,0.15]
[1641015133689,0.0001,47499.0,47494.0,0.15]
[1641015134492,0.052757,47497.0,47494.0,0.15]
[1641015135093,0.0001,47497.0,47494.0,0.15]
[1641015137129,0.0001,47497.0,47494.0,0.487494]
[1641015138333,0.0001,47497.0,47494.0,0.15]
[1641015138833,0.0001,47497.0,47494.0,0.50875756]
[1641015139634,0.0001,47497.0,47494.0,0.53029165]
[1641015139845,0.0001,47497.0,47494.0,0.50902809]
[1641015140892,0.0001,47497.0,47494.0,0.79968828]
[1641015141091,0.04023638,47504.0,47495.0,0.4416078]
[1641015141295,0.04023638,47504.0,47503.0,0.00120684]
[1641015141494,0.04023638,47504.0,47503.0,1.60870084]
[1641015141690,0.04023638,47504.0,47503.0,0.48870084]
[1641015141892,0.04023638,47504.0,47503.0,1.93567769]
[1641015141893,0.03998284,47504.0,47503.0,1.93567769]
[1641015142089,0.03998284,47504.0,47503.0,1.21967218]
[1641015142692,0.03998284,47504.0,47503.0,1.2401874]
[1641015143092,0.03998284,47504.0,47503.0,1.4501874]
[1641015143993,0.03998284,47504.0,47503.0,1.44898056]
[1641015144246,0.03998284,47504.0,47503.0,0.70749207]
[1641015144439,0.03998284,47504.0,47503.0,1.06386145]
[1641015144636,0.03998284,47504.0,47503.0,1.04334623]
[1641015145238,0.03998284,47504.0,47503.0,1.06225457]
[1641015145838,0.03998284,47504.0,47503.0,1.34610236]
[1641015146038,0.03998284,47504.0,47503.0,1.45831864]
[1641015146738,0.03998284,47504.0,47503.0,0.87447085]
[1641015146938,0.03998284,47504.0,47503.0,1.04629132]
[1641015147139,0.03998284,47504.0,47503.0,1.06531405]
[1641015147438,0.03998284,47504.0,47503.0,1.02447085]
[1641015147641,0.03998284,47504.0,47503.0,1.42407654]
[1641015147842,0.03998284,47504.0,47503.0,1.44590608]
[1641015148288,0.03998284,47504.0,47503.0,1.04630039]
[1641015148688,0.03998284,47504.0,47503.0,1.06515011]
[1641015148890,0.04011014,47504.0,47503.0,0.70582657]
[1641015149291,0.04011014,47504.0,47503.0,0.22884972]
[1641015149690,0.04011014,47504.0,47503.0,0.398262]
[1641015149890,0.04011014,47504.0,47503.0,0.37941228]
[1641015150499,0.04011014,47504.0,47503.0,0.22941228]
[1641015150693,0.37760414,47504.0,47503.0,0.25003085]
[1641015150897,0.37760414,47504.0,47503.0,0.23061857]
[1641015151295,0.70448319,47504.0,47503.0,0.23061857]
[1641015151493,1.04389298,47504.0,47503.0,0.23061857]
[1641015151756,1.14389298,47504.0,47503.0,0.23061857]
[1641015151948,1.14389298,47504.0,47503.0,0.21]